Cogmind - Beta 10.2 @@@ ROGUE MODE // 2021.05.12 @ 10:22:14 Player: ChromeKnight Result: Destroyed by G-34 Mercenary with Small Laser Performance ------------- Evolutions (0) 0 Regions Visited (2) 400 Robots Destroyed (9) 45 Value Destroyed (244) 244 Prototype IDs (0) 0 Alien Tech Used (0) 0 Bonus (0) 0 TOTAL SCORE: 689 Bonus ------- None Cogmind --------- Core Integrity 0/250 Matter 159/300 Energy 100/100 System Corruption 0% Temperature Cool (6) Movement Hovering (240) Ox3 Location -10/Mines Parts ------- > --- POWER (1) -------- (None) > --- PROPULSION (2) --- Hover Unit > --- UTILITY (2) ------ Large Storage Unit Light Armor Plating > --- WEAPON (2) ------- Light Cannon > --- INVENTORY (10) --- (None) Peak State ------------ > --- POWER ------------ Light Nuclear Core > --- PROPULSION ------- Hover Unit > --- UTILITY ---------- Large Storage Unit Light Armor Plating > --- WEAPON ----------- Medium Laser Light Cannon > --- INVENTORY -------- (None) [Rating: 8] Favorites ----------- Power Light Nuclear Core Engine Ion Engine Power Core Light Nuclear Core Propulsion Aluminum Leg Leg Aluminum Leg Hover Unit Hover Unit Utility Large Storage Unit Storage Large Storage Unit Protection Light Armor Plating Weapon Light Cannon Energy Gun Medium Laser Ballistic Gun Assault Rifle Ballistic Cannon Light Cannon Build | -11 -10 -10 ------- Run | Scr Mat Min Slots Evolved . | . . . Power . | . . . Propulsion . | . . . Utility . | . . . Weapon . | . . . Parts Attached 12 | 6 6 . Power 2 | 1 1 . Engine 1 | 1 . . Core 1 | . 1 . Reactor . | . . . Propulsion 3 | 2 1 . Treads . | . . . Leg 2 | 2 . . Wheel . | . . . Hover 1 | . 1 . Flight . | . . . Utility 3 | 1 2 . Device . | . . . Storage 2 | 1 1 . Processor . | . . . Hackware . | . . . Protection 1 | . 1 . Artifact . | . . . Weapon 4 | 2 2 . Energy Gun 1 | . 1 . Energy Cannon . | . . . Ballistic Gun 2 | 2 . . Ballistic Cannon 1 | . 1 . Launcher . | . . . Special Weapon . | . . . Impact Weapon . | . . . Slashing Weapon . | . . . Piercing Weapon . | . . . Special Melee Weapon . | . . . Unidentified Prototypes . | . . . Parts Lost 7 | . 5 2 Power 2 | . 1 1 Propulsion 2 | . 2 . Utility . | . . . Weapon 3 | . 2 1 Highest Loss Streak 4 | . 4 2 Average Slot Usage (%) 75 | . 75 85 Engine 5 | . 5 . Core 7 | . 6 14 Leg 12 | . 12 . Hover 7 | . 6 14 Storage 14 | . 14 14 Protection 6 | . 6 14 Energy Gun 2 | . 1 14 Ballistic Gun 11 | . 11 . Ballistic Cannon 8 | . 7 14 Naked Turns . | . . . Heaviest Build 29 | 12 29 29 Greatest Support 20 | 20 20 6 Greatest Overweight (x) 4 | 1 4 4 Average Overweight (x) 1 | . 2 4 Largest Inventory Capacity 12 | 6 12 10 Average Capacity 9 | 5 10 10 Most Carried 2 | . 2 . Average Carried . | . . . Final Capacity 10 | 6 10 10 Final Carried . | . . . Class Distribution -------------------- 100% | Mutant Dominant Class ---------------- Mutant | -10/Materials Mutant | -10/Mines Resources | -11 -10 -10 ----------- Run | Scr Mat Min Matter Collected 271 | 211 60 . Remotely . | . . . Salvage Created 408 | . 408 . Parts 14 | . 14 . Haulers Intercepted 1 | . 1 . Recyclers Shooed 4 | . 4 . Parts Field Recycled . | . . . Retrieved Matter . | . . . Parts Self-Destructed . | . . . Prevented . | . . . Kills | -11 -10 -10 ------- Run | Scr Mat Min Combat Hostiles Destroyed 6 | . 6 . Guns 3 | . 3 . Cannons 3 | . 3 . Classes Destroyed 3 | . 3 . Hauler 1 | . 1 . Recycler 2 | . 2 . Grunt 6 | . 6 . Best Kill Streak 8 | . 8 . Combat Bots Only 5 | . 5 . Max Kills in Single Turn 1 | . 1 . Gunslinging . | . . . Exploded . | . . . Melee . | . . . Uniques/NPCs Destroyed . | . . . Combat | -11 -10 -10 -------- Run | Scr Mat Min Damage Taken 968 | . 870 98 Core 259 | . 248 11 Absorbed by Shields . | . . . Core Remaining (%) 100 | 100 . . Volleys Fired 33 | . 33 . Largest 2 | . 2 . Hottest 40 | . 40 . Shots Fired 45 | . 45 . Gun 29 | . 29 . Cannon 16 | . 16 . Launcher . | . . . Special . | . . . Kinetic 45 | . 45 . Thermal . | . . . Explosive . | . . . Electromagnetic . | . . . Robot Hit Streak 7 | . 7 . Robot Miss Streak 2 | . 2 . Penetration Max . | . . . Secondary Targets 1 | . 1 . Max Gunslinging Chain 1 | . 1 . Shots Hit Robots 34 | . 34 . Core Hits 17 | . 17 . Critical Hits . | . . . Critical Kills . | . . . Critical Parts Destroyed . | . . . Melee Attacks . | . . . Impact . | . . . Slashing . | . . . Piercing . | . . . Sneak Attacks . | . . . Combat Hostiles . | . . . Follow-up Attacks . | . . . Damage Inflicted 493 | . 493 . Guns 261 | . 261 . Cannons 232 | . 232 . Explosions . | . . . Melee . | . . . Ramming . | . . . Kinetic 493 | . 493 . Thermal . | . . . Explosive . | . . . Electromagnetic . | . . . Impact . | . . . Slashing . | . . . Piercing . | . . . Highest Corruption . | . . . Average Corruption . | . . . Corruption Purged . | . . . Overload Shots . | . . . Overflow Damage . | . . . Projectiles . | . . . Explosions . | . . . Melee . | . . . Knockbacks 7 | . 7 . Impact . | . . . Kinetic 7 | . 7 . Secondary . | . . . Self-Inflicted Damage . | . . . Shots . | . . . Rammed . | . . . Targets Rammed . | . . . Kicked . | . . . Crushed . | . . . Highest Temperature 76 | . 76 . Average Temperature 27 | . 27 . Received Heat Transfer 537 | . 483 54 Siege Activations . | . . . Robots Corrupted . | . . . Combat Hostiles . | . . . Parts Fried . | . . . Impact Corruptions . | . . . Robots Melted . | . . . Combat Hostiles . | . . . Parts Melted . | . . . Heat Transferred . | . . . Parts Sabotaged . | . . . Parts Stolen . | . . . Parts Stripped . | . . . Power Chain Reactions . | . . . Missiles Intercepted . | . . . Alert | -11 -10 -10 ------- Run | Scr Mat Min Peak Influence 147 | . 147 57 Initial 57 | . . 57 Average 67 | . 78 53 Maximum Alert Level . | . . . Low Security (%) 100 | 100 100 100 Level 1 . | . . . Level 2 . | . . . Level 3 . | . . . Level 4 . | . . . Level 5 . | . . . High Security . | . . . Max Security . | . . . Squads Dispatched 2 | . 2 . Investigation . | . . . Extermination . | . . . Reinforcement 2 | . 2 . Assault . | . . . Garrison . | . . . Intercept . | . . . Construction Impeded . | . . . Haulers Reinforced . | . . . Stealth | -11 -10 -10 --------- Run | Scr Mat Min Distress Signals 1 | . 1 . Communications Jammed . | . . . Distress Signals . | . . . Times Spotted 15 | . 13 2 Peak Tracking Total 6 | . 6 2 Tactical Retreats 1 | . 1 . Traps | -11 -10 -10 ------- Run | Scr Mat Min Traps Triggered . | . . . Indirectly . | . . . Trap Hack Attempts . | . . . Triggered . | . . . Disarmed . | . . . Reprogrammed . | . . . Reused . | . . . Traps Extracted . | . . . Installed . | . . . Triggered . | . . . Machines | -11 -10 -10 ---------- Run | Scr Mat Min Machines Disabled . | . . . Max in Single Turn . | . . . Machines Sabotaged . | . . . Garrisons Compromised . | . . . Overloaded Fab Kills . | . . . Fab Network Shutdowns . | . . . Hacking | -11 -10 -10 --------- Run | Scr Mat Min Machines Accessed 1 | . 1 . Terminals 1 | . 1 . Fabricators . | . . . Repair Stations . | . . . Recycling Units . | . . . Scanalyzers . | . . . Garrison Access . | . . . Total Hacks 1 | . 1 . Successful 1 | . 1 . Failed . | . . . Catastrophic . | . . . Database Lockouts . | . . . Manual . | . . . Terminals 1 | . 1 . Fabricators . | . . . Repair Stations . | . . . Recycling Units . | . . . Scanalyzers . | . . . Garrison Access . | . . . Terminal Hacks 1 | . 1 . Robot Analysis 1 | . 1 . Fabricator Hacks . | . . . Repair Station Hacks . | . . . Recycling Unit Hacks . | . . . Scanalyzer . | . . . Garrison Access Hacks . | . . . Unauthorized Hacks . | . . . Terminals . | . . . Fabricators . | . . . Repair Stations . | . . . Recycling Units . | . . . Scanalyzers . | . . . Garrison Access . | . . . Data Cores Recovered . | . . . Used . | . . . Hacking Detections . | . . . Full Trace Events . | . . . Feedback Events . | . . . Feedback Blocked . | . . . Robot Schematics Acquired . | . . . Robots Built . | . . . Matter . | . . . Time . | . . . Total Robot Build Rating . | . . . Part Schematics Acquired . | . . . Parts Built . | . . . Matter . | . . . Time . | . . . Total Part Build Rating . | . . . Parts Repaired . | . . . Time . | . . . Parts Recycled . | . . . Recycled Matter . | . . . Retrieved Matter . | . . . Retrieved Components . | . . . Parts Scanalyzed . | . . . Part Schematics Acquired . | . . . Parts Damaged . | . . . Bothacking | -11 -10 -10 ------------ Run | Scr Mat Min Used RIF Installer . | . . . Robots Hacked . | . . . Non-combat . | . . . Combat . | . . . Robot Hacks Applied . | . . . Relay Couplers Released . | . . . Robots Rewired . | . . . Allies Hacked . | . . . Hacks Repelled . | . . . Allies | -11 -10 -10 -------- Run | Scr Mat Min Total Allies . | . . . Largest Group . | . . . Highest-Rated Group . | . . . Highest-Rated Ally . | . . . Total Orders . | . . . Ally Attacks . | . . . Total Damage . | . . . Kills . | . . . Allies Corrupted . | . . . Allies Melted . | . . . Intel | -11 -10 -10 ------- Run | Scr Mat Min Robot Analysis Total 1 | . 1 . Derelict Logs Recovered . | . . . Drone Launches . | . . . Drone Recoveries . | . . . Exploration | -11 -10 -10 ------------- Run | Scr Mat Min Turns Passed 464 | 63 390 11 Spaces Moved 198 | 48 146 4 Core 6 | 6 . . Treads . | . . . Legs 127 | 42 85 . Wheels . | . . . Hover 65 | . 61 4 Flight . | . . . Fastest Speed 50 | 50 120 300 Average Speed 188 | 113 210 300 Slowest Speed 300 | 120 300 300 Overloaded Moves . | . . . Propulsion Burnouts . | . . . Robots Hopped . | . . . Cave-ins Triggered . | . . . Exploration Rate (%) 14 | 4 36 4 Regions Visited 2 Branch Regions 1 Pre-discovered Areas . | . . . Known Exits Taken . | . . . Unknown Exits Taken 2 | 1 1 . Scrap Searched . | . . . Spaces Dug . | . . . Terrain Destroyed . | . . . Melee . | . . . Projectile . | . . . AOE . | . . . Terrain Rammed . | . . . Walls Destroyed . | . . . Machines Disabled . | . . . Actions | -11 -10 -10 --------- Run | Scr Mat Min Total 244 | 53 187 4 Wait . | . . . Move 196 | 47 145 4 Hop . | . . . Pick Up 2 | . 2 . Fast Attach 10 | 6 4 . Attach 2 | . 2 . Detach . | . . . Swap . | . . . Drop 1 | . 1 . Fire 33 | . 33 . Melee . | . . . Ram . | . . . Kick . | . . . Crush . | . . . Escape Stasis . | . . . Rewire . | . . . Trap . | . . . Miscellaneous . | . . . Route ------- -11/Scrapyard -10/Materials -10/Mines History --------- Turn | Location | Event 6 | -11/Scrapyard | Discovered new exit (range 15) 64 | -11/Scrapyard | Entered Materials 230 | -10/Materials | Core integrity fell below 50% 264 | -10/Materials | Lost 4 parts (1p1n2w) 270 | -10/Materials | Core integrity fell below 20% 315 | -10/Materials | Build established: Mutant 433 | -10/Materials | Discovered new exit (range 8) 454 | -10/Materials | Entered Mines 463 | -10/Mines | Met a Derelict bent on vengeance 465 | -10/Mines | Destroyed by G-34 Mercenary with Small Laser Last Messages --------------- 00257_ R-06 Scavenger knocked back. 00262_ Acquired Lgt. Nuclear Core. 00264_ ALERT: Hostiles spotted, dispatching reinforcements to Terminal M001. 00265_ Aluminum Leg destroyed. 00275_ Acquired Lgt. Armor Plating. 00277_ Acquired 60 matter. 00283_ Extracted 1 energy. 00286_ K-01 Serf collects debris. 00294_ U-05 Engineer lays Concrete. 00297_ K-01 Serf collects debris. 00304_ R-06 Scavenger collects Ion Engine. 00328_ G-34 Mercenary knocked back. 00334_ G-34 Mercenary destroyed. 00408_ Acquired Med. Laser. 00433_ EXIT=FOUND LOCATION=UNKNOWN GOAL=ESCAPE Something is scanning the area. 00462_ Med. Laser destroyed. 00464_ Lgt. Nuclear Core destroyed. Map ----- +----------------------------------------------------+ | ?????????????????????????????????? | | ?????????????????????????????????? | | ?????????????????????????????????? | | ?????????????????????????????????? | | ?????????????????????????????????? | | ?????????????????????????????????? | | ?????????????????????????????????? | | ?????????????????????????????????? | | ?????????????????????????????????? | | ?????????????????????????????????? | | ?????????# ??????????????????????? | | ?????#??? ??????????????????????? | | ????? ### #????????????????????? | | ?????? #????????????????????? | | ?????? ?????????????????????? | | ?????? ?????????????????????? | | ?????? ?????????????????????? | | ??????? ?????????????????????? | | ??????? ??????????????????????? | | ??????? ??????????????????????? | | ???????# ??????????????????????? | | ???????# $##?????????????????????? | | ???????# ??????????????????????? | | ???????# #??????????????????????? | | ???????# #?###??????????????????? | | ???????# @## ##?????????????????? | | ??????## #?????????????????? | | ??????# #?????????????????? | | ??????# ##?????????????????? | | ??????#g #??????????????????? | | ?????# g #??????????????????? | | ????# # #??????????????????? | | ????## ## ?????????????????? | | ?????#######??# #???????????????? | | ??????????????? ##???????????????? | | ????????????????#????????????????? | | ?????????????????????????????????? | | ?????????????????????????????????? | | ?????????????????????????????????? | | ?????????????????????????????????? | | ?????????????????????????????????? | | ?????????????????????????????????? | | | | | | | | | | | | | | | | | +----------------------------------------------------+ Best States ------------- Heat Dissipation 25 Energy Generation 14 Energy Capacity 250 Matter Stores 251 Matter Capacity 300 Sight Range 16 Terrain Scan Density 10 Armor Coverage 150 Evasion (%) 40 Item Schematics ----------------- None Robot Schematics ------------------ None Fabricated ------------ Nothing Alien Tech Used ----------------- None Achievements -------------- None Challenges ------------ None Game ------ Seed IntegrationWardroneAutogun Manual? 0 Play Time 00:02:15 Cumulative 203.6 hours Start 2021.05.12 @ 10:20:03 End 2021.05.12 @ 10:22:14 Sessions 1 Manual Loads 0 Difficulty Rogue Special Mode None Game No. 398 Rogue 243 Adventurer 148 Explorer 7 Win Type - Total 5 Types 5/0/0/0/0/0/0/0/0 Lore% 73 Gallery% 84 Achievement% 62 Wizard Run 0 Options --------- ASCII 0 Keyboard 0 Movement Numpad Keybinds 0 Fullscreen 1 Font 14/X11 Map View 84x54 Tactical HUD 1 Map Filters NONE Filters NONE Steam 1 RUN: 0821d302-ae9a-4c28-8606-3fa0479819bd